bitfinex/quotes_BTCUSD_20250908
["timestamp","ask_amount","ask_price","bid_price","bid_amount"]
[1757331183798,0.18385907,111920.0,111910.0,0.15611118]
[1757331184467,0.17869907,111920.0,111910.0,0.46820959]
[1757331184668,0.17869907,111920.0,111910.0,0.79966682]
[1757331184885,0.17869907,111920.0,111910.0,0.66786344]
[1757331185067,0.001,111920.0,111910.0,0.66786344]
[1757331185702,0.17969907,111920.0,111910.0,0.66786344]
[1757331185911,0.17969907,111920.0,111910.0,0.97838185]
[1757331186341,0.17969907,111920.0,111910.0,0.66786344]
[1757331186554,0.001,111920.0,111910.0,1.06786344]
[1757331186855,0.17969907,111920.0,111910.0,1.06786344]
[1757331188640,0.17969907,111920.0,111910.0,1.00371452]
[1757331188848,0.001,111920.0,111910.0,1.32298293]
[1757331189054,0.001,111920.0,111910.0,1.32334293]
[1757331189437,0.17969907,111920.0,111910.0,1.32334293]
[1757331189789,0.17969907,111920.0,111910.0,1.01282452]
[1757331190811,0.001,111920.0,111910.0,1.01282452]
[1757331191032,0.17969907,111920.0,111910.0,1.01282452]
[1757331191251,0.001,111920.0,111910.0,1.32334293]
[1757331192340,0.17866714,111940.0,111930.0,0.17867816]
[1757331192562,0.17866714,111940.0,111930.0,0.33532284]
[1757331192773,0.17866714,111940.0,111930.0,0.64584125]
[1757331192979,0.17866714,111940.0,111930.0,0.73532284]
[1757331193182,0.17866714,111940.0,111930.0,1.04584125]
[1757331193600,0.17866714,111940.0,111930.0,0.55664468]
[1757331193805,0.17866714,111940.0,111930.0,0.86716309]
[1757331194013,0.17866714,111940.0,111930.0,0.55664468]
[1757331194226,0.49125555,111940.0,111930.0,0.55606468]
[1757331194429,0.49434555,111940.0,111930.0,0.55606468]
[1757331195565,0.49434555,111940.0,111930.0,0.55664468]
[1757331197756,0.49434555,111940.0,111930.0,0.55606468]
[1757331197970,0.49434555,111940.0,111930.0,0.15606468]
[1757331198350,0.49434555,111940.0,111930.0,0.55606468]
[1757331199487,0.80486396,111940.0,111930.0,0.06414869]
[1757331202849,0.1786831,111930.0,111920.0,0.06414869]
[1757331202995,0.49199343,111930.0,111920.0,0.06414869]
[1757331203200,0.17869907,111920.0,111910.0,0.46419496]
[1757331203410,0.80512589,111920.0,111910.0,0.06419496]
[1757331203617,1.16812589,111920.0,111910.0,0.06419496]
[1757331203826,1.16812589,111920.0,111910.0,4.627e-05]
[1757331205139,1.16812589,111920.0,111910.0,0.00104627]
[1757331205339,1.19496227,111920.0,111910.0,0.00104627]
[1757331206145,0.88444386,111920.0,111910.0,0.00104627]
[1757331207398,0.57392545,111920.0,111910.0,0.00104627]
[1757331207646,0.88444386,111920.0,111910.0,0.00104627]
[1757331207864,0.57392545,111920.0,111910.0,0.00104627]
[1757331208081,0.88444386,111920.0,111910.0,0.00104627]
[1757331209755,1.19496227,111920.0,111910.0,0.00104627]
[1757331209995,0.57392545,111920.0,111910.0,0.00104627]
[1757331210232,0.88444386,111920.0,111910.0,0.00104627]
[1757331210453,1.19496227,111920.0,111910.0,0.00104627]
[1757331210681,0.57392545,111920.0,111910.0,4.627e-05]
[1757331210911,1.19496227,111920.0,111910.0,4.627e-05]
[1757331211599,1.19596227,111920.0,111910.0,4.627e-05]
[1757331211804,1.28787826,111920.0,111910.0,4.627e-05]
[1757331212033,0.66684144,111920.0,111910.0,4.627e-05]
[1757331212271,1.28787826,111920.0,111910.0,4.627e-05]
[1757331212752,1.29678767,111920.0,111910.0,4.627e-05]
[1757331218531,1.60730608,111920.0,111910.0,4.627e-05]
[1757331224081,0.67575085,111920.0,111910.0,4.627e-05]
[1757331224311,1.68251495,111920.0,111910.0,4.627e-05]
[1757331224512,1.70345377,111920.0,111910.0,4.627e-05]
[1757331225218,1.39293536,111920.0,111910.0,4.627e-05]
[1757331225446,1.6282449,111920.0,111910.0,4.627e-05]
[1757331225857,1.6272449,111920.0,111910.0,4.627e-05]
[1757331226254,1.6292449,111920.0,111910.0,4.627e-05]
[1757331227082,0.67675085,111920.0,111910.0,4.627e-05]
[1757331227288,1.29778767,111920.0,111910.0,4.627e-05]
[1757331227727,1.29878767,111920.0,111910.0,4.627e-05]
[1757331229999,0.67775085,111920.0,111910.0,4.627e-05]
[1757331230223,1.29878767,111920.0,111910.0,4.627e-05]
[1757331232551,1.39070366,111920.0,111910.0,4.627e-05]
[1757331232959,1.29878767,111920.0,111910.0,4.627e-05]
[1757331233603,1.60930608,111920.0,111910.0,4.627e-05]
[1757331234447,0.98866437,111920.0,111910.0,4.627e-05]
[1757331234660,1.04866437,111920.0,111910.0,4.627e-05]
[1757331236507,0.98866437,111920.0,111910.0,4.627e-05]
[1757331238020,0.64866437,111920.0,111910.0,4.627e-05]
[1757331238448,0.98866437,111920.0,111910.0,4.627e-05]
[1757331238972,0.67775085,111920.0,111910.0,4.627e-05]
[1757331239189,0.98866437,111920.0,111910.0,4.627e-05]
[1757331244750,0.67775085,111920.0,111910.0,4.627e-05]
[1757331244969,0.98866437,111920.0,111910.0,4.627e-05]
[1757331245650,0.67775085,111920.0,111910.0,4.627e-05]
[1757331245857,0.98866437,111920.0,111910.0,4.627e-05]
[1757331247276,0.97975496,111920.0,111910.0,4.627e-05]
[1757331247482,0.86483897,111920.0,111910.0,4.627e-05]
[1757331247865,0.21392545,111920.0,111910.0,4.627e-05]
[1757331248080,0.18708907,111920.0,111910.0,4.627e-05]
[1757331248289,0.49800259,111920.0,111910.0,4.627e-05]
[1757331248697,0.49700259,111920.0,111910.0,4.627e-05]
[1757331249298,0.49500259,111920.0,111910.0,4.627e-05]
[1757331249556,0.49700259,111920.0,111910.0,4.627e-05]
[1757331250163,0.18608907,111920.0,111910.0,4.627e-05]
[1757331250333,0.49700259,111920.0,111910.0,4.627e-05]
[1757331250964,0.18508907,111920.0,111910.0,0.00062627]
[1757331251180,0.17969907,111920.0,111910.0,0.00959872]
[1757331251381,0.17969907,111920.0,111910.0,0.00062627]
[1757331251382,0.18249124,111920.0,111910.0,0.00062627]
[1757331251596,0.17969907,111920.0,111910.0,0.40345578]
[1757331251803,0.17969907,111920.0,111910.0,0.58217081]
[1757331252064,0.17969907,111920.0,111910.0,0.6463195]
[1757331252480,0.17969907,111920.0,111910.0,0.15669095]
[1757331252764,0.17969907,111920.0,111910.0,0.46760447]
[1757331252898,0.17869907,111920.0,111910.0,0.15669095]
[1757331253271,0.18149124,111920.0,111910.0,0.09254226]
[1757331253433,0.18249124,111920.0,111910.0,0.09254226]
[1757331253642,0.18149124,111920.0,111910.0,0.09254226]
[1757331253849,0.18656124,111920.0,111910.0,0.09254226]
[1757331254053,0.18376907,111920.0,111910.0,4.627e-05]
[1757331254984,0.17869907,111920.0,111910.0,0.00062627]
[1757331255193,0.18149124,111920.0,111910.0,0.00062627]
[1757331258182,0.18376907,111920.0,111910.0,4.627e-05]
[1757331258390,0.49468259,111920.0,111910.0,4.627e-05]
[1757331258827,0.83468259,111920.0,111910.0,4.627e-05]
[1757331260582,0.95104858,111920.0,111910.0,4.627e-05]
[1757331261440,0.95204858,111920.0,111910.0,4.627e-05]
[1757331261856,0.95104858,111920.0,111910.0,4.627e-05]
[1757331262098,0.64013506,111920.0,111910.0,0.00104627]
[1757331262311,0.95104858,111920.0,111910.0,0.00204627]
[1757331264535,0.9778894,111920.0,111910.0,0.00204627]
[1757331265586,0.66697588,111920.0,111910.0,0.00204627]
[1757331265813,0.9778894,111920.0,111910.0,0.00204627]
[1757331267808,0.9778894,111920.0,111910.0,1e-08]
[1757331268886,0.17876296,111880.0,111870.0,0.53476081]
[1757331269068,0.18371613,111880.0,111870.0,0.6266768]
[1757331269223,0.18405296,111880.0,111870.0,0.2266768]
[1757331269436,0.18405296,111880.0,111870.0,0.2272568]
[1757331269910,0.18405296,111880.0,111870.0,0.55664468]
[1757331270111,0.18405296,111880.0,111870.0,0.5566908]
[1757331271532,0.18405296,111880.0,111870.0,0.46419481]
[1757331271751,0.49596648,111880.0,111870.0,0.46519481]
[1757331271951,0.18505296,111880.0,111870.0,0.06519481]
[1757331272167,0.18505296,111880.0,111870.0,0.00104612]
[1757331272372,0.18505296,111880.0,111870.0,0.40104612]
[1757331272577,0.18405296,111880.0,111870.0,0.40104612]
[1757331272991,0.18605296,111880.0,111870.0,0.40104612]
[1757331274025,0.18605296,111880.0,111870.0,0.40004612]
[1757331275416,0.18605296,111880.0,111870.0,0.00062612]
[1757331275629,0.18605296,111880.0,111870.0,4.612e-05]
[1757331276342,0.18605296,111880.0,111870.0,0.31095964]
[1757331277100,0.18605296,111880.0,111870.0,4.612e-05]
[1757331277309,0.18605296,111880.0,111870.0,0.31095964]
[1757331277550,0.18605296,111880.0,111870.0,4.612e-05]
[1757331277750,0.18605296,111880.0,111870.0,0.31095964]
[1757331279315,0.18605296,111880.0,111870.0,4.612e-05]
[1757331280385,0.18605296,111880.0,111870.0,0.31095964]
[1757331282358,0.18605296,111880.0,111870.0,0.71095964]
[1757331285251,0.18605296,111880.0,111870.0,0.31095964]
[1757331285380,0.18605296,111880.0,111870.0,4.612e-05]
[1757331285596,0.18605296,111880.0,111870.0,0.31095964]
[1757331285791,0.18389296,111880.0,111870.0,0.71153964]
[1757331286399,0.18605296,111880.0,111870.0,0.71153964]
[1757331286838,0.18605296,111880.0,111870.0,0.71095964]
[1757331287022,0.18605296,111880.0,111870.0,0.40004612]
[1757331287463,0.18605296,111880.0,111870.0,4.612e-05]
[1757331287803,0.18605296,111880.0,111870.0,0.31095964]
[1757331288031,0.18605296,111880.0,111870.0,0.71095964]
[1757331288253,0.18605296,111880.0,111870.0,0.77510833]
[1757331288708,0.18605296,111880.0,111870.0,0.46419481]
[1757331288941,0.18605296,111880.0,111870.0,0.06419481]
[1757331292865,0.18605296,111880.0,111870.0,0.06477481]
[1757331293082,0.18605296,111880.0,111870.0,0.46419481]
[1757331295946,0.18605296,111880.0,111870.0,0.06419481]
[1757331296454,0.18605296,111880.0,111870.0,0.46419481]
[1757331297581,0.49697209,111880.0,111870.0,0.46419481]
[1757331299401,0.49697209,111880.0,111870.0,0.06419481]
[1757331300020,0.49697209,111880.0,111870.0,0.46419481]
[1757331302666,0.18605296,111880.0,111870.0,0.46419481]
[1757331302902,0.18605296,111880.0,111870.0,0.46477481]
[1757331303123,0.18605296,111880.0,111870.0,0.37569394]
[1757331303575,0.18389296,111880.0,111870.0,0.77569394]
[1757331303807,0.18076296,111880.0,111870.0,0.80346124]
[1757331305028,0.18076296,111880.0,111870.0,0.80382124]
[1757331305843,0.18076296,111880.0,111870.0,0.67168104]
[1757331306069,0.18076296,111880.0,111870.0,0.98260017]
[1757331306558,0.18076296,111880.0,111870.0,1.06278604]
[1757331307033,0.18076296,111880.0,111870.0,2.04556312]
[1757331307034,0.002,111880.0,111870.0,2.04556312]
[1757331307259,0.1876956,111900.0,111880.0,0.17875147]
[1757331307478,0.1876956,111900.0,111890.0,0.4677884]
[1757331307709,0.1876956,111900.0,111890.0,0.4681484]
[1757331307962,0.1876956,111900.0,111890.0,1.04689538]
[1757331310133,0.00893655,111900.0,111890.0,1.29344123]
[1757331310354,0.18766755,111900.0,111890.0,1.37390783]
[1757331310564,0.18766755,111900.0,111890.0,1.29344123]
[1757331310715,0.17875433,111910.0,111890.0,1.29344123]
[1757331310945,0.17875433,111910.0,111900.0,0.68608671]
[1757331311288,0.17875433,111910.0,111900.0,0.9570937]
[1757331311510,0.17875433,111910.0,111900.0,0.9576737]
[1757331311747,0.17875433,111910.0,111900.0,1.3576737]
[1757331312567,0.17975433,111910.0,111900.0,1.3576737]
[1757331313049,0.17875433,111910.0,111900.0,1.3576737]
[1757331313259,0.17869907,111920.0,111900.0,1.3664237]
[1757331313496,0.17869907,111920.0,111910.0,0.40319512]
[1757331313706,0.17869907,111920.0,111910.0,0.46744357]
[1757331313972,0.17869907,111920.0,111910.0,0.46802357]
[1757331314864,4.622e-05,111920.0,111910.0,0.95765773]
[1757331315086,4.622e-05,111920.0,111910.0,1.29340928]
[1757331315303,4.622e-05,111920.0,111910.0,1.08978727]
[1757331315524,4.622e-05,111920.0,111910.0,1.06295675]
[1757331315739,4.622e-05,111920.0,111910.0,0.98249015]
[1757331315964,4.622e-05,111920.0,111910.0,1.04656989]
[1757331316212,4.622e-05,111920.0,111910.0,1.35748902]
[1757331317481,0.17874529,111920.0,111910.0,1.35748902]
[1757331317687,4.622e-05,111920.0,111910.0,1.35748902]
[1757331318346,0.17874529,111920.0,111910.0,1.35848902]
[1757331318768,0.17874529,111920.0,111910.0,1.04656989]
[1757331319218,0.17974529,111920.0,111910.0,1.04656989]
[1757331320377,0.17974529,111920.0,111910.0,0.98249015]
[1757331321258,0.17974529,111920.0,111910.0,1.29340928]
[1757331322884,0.17974529,111920.0,111910.0,0.67157102]
[1757331323034,0.17974529,111920.0,111910.0,1.29340928]
[1757331323950,0.17974529,111920.0,111910.0,0.67157102]
[1757331324157,0.17974529,111920.0,111910.0,0.98213015]
[1757331324362,0.17974529,111920.0,111910.0,0.98249015]
[1757331326580,0.17974529,111920.0,111910.0,0.67157102]
[1757331326792,0.17974529,111920.0,111910.0,0.98249015]
[1757331328299,0.17974529,111920.0,111910.0,1.29340928]
[1757331329619,0.00104622,111920.0,111910.0,1.29340928]
[1757331330697,0.00104622,111920.0,111910.0,1.32023932]
[1757331331354,0.00104622,111920.0,111910.0,0.69840106]
[1757331331545,0.00104622,111920.0,111910.0,1.32023932]
[1757331332013,0.17974529,111920.0,111910.0,0.69840106]
[1757331332232,0.17974529,111920.0,111910.0,0.69804106]
[1757331332443,0.17974529,111920.0,111910.0,1.32023932]
[1757331332671,0.17974529,111920.0,111910.0,1.31987932]
[1757331332888,0.17974529,111920.0,111910.0,0.83024516]
[1757331333124,0.17974529,111920.0,111910.0,0.98213015]
[1757331333565,0.17974529,111920.0,111910.0,0.80341512]
[1757331333776,0.17974529,111920.0,111910.0,0.98213015]
[1757331334409,0.17974529,111920.0,111910.0,1.04620989]
[1757331334844,0.17974529,111920.0,111910.0,1.04656989]
[1757331335960,0.00104622,111920.0,111910.0,1.36623902]
[1757331336174,0.00104622,111920.0,111910.0,1.38717784]
[1757331336393,0.00104622,111920.0,111910.0,0.79216744]
[1757331336602,0.00104622,111920.0,111910.0,1.4140057]
[1757331338892,0.00104622,111920.0,111910.0,1.4052557]
[1757331339592,0.00104622,111920.0,111910.0,1.34117596]
[1757331339826,4.622e-05,111920.0,111910.0,1.34217596]
[1757331340442,4.622e-05,111920.0,111910.0,1.42264256]
[1757331340674,0.18764316,111940.0,111930.0,0.62183826]
[1757331340854,0.18768941,111940.0,111930.0,0.89301735]
[1757331341302,0.18768941,111940.0,111930.0,1.29301735]
[1757331341513,0.18768941,111940.0,111930.0,0.86767244]
[1757331341727,0.18768941,111940.0,111930.0,0.55675331]
[1757331341943,0.18768941,111940.0,111930.0,0.86767244]
[1757331342744,0.18768941,111940.0,111930.0,0.55675331]
[1757331342971,0.18768941,111940.0,111930.0,0.86767244]
[1757331348550,0.18768941,111940.0,111930.0,0.87645534]
[1757331348877,0.19089941,111940.0,111930.0,0.87645534]
[1757331350000,0.18768941,111940.0,111930.0,0.87645534]
[1757331350158,0.19089941,111940.0,111930.0,0.87645534]
[1757331351412,0.18768941,111940.0,111930.0,0.87645534]
[1757331352481,0.19072941,111940.0,111930.0,0.87645534]
[1757331353207,0.19072941,111940.0,111930.0,0.46767244]
[1757331354455,0.19072941,111940.0,111930.0,0.46728577]
[1757331355204,0.19072941,111940.0,111930.0,0.47606419]
[1757331355423,0.19072941,111940.0,111930.0,0.46728577]
[1757331355424,0.19274941,111940.0,111930.0,0.46728577]
[1757331356737,0.19274941,111940.0,111930.0,0.47636161]
[1757331357774,0.19274941,111940.0,111930.0,0.46670577]
[1757331358344,0.19274941,111940.0,111930.0,0.46728577]
[1757331358555,0.19274941,111940.0,111930.0,0.47621021]
[1757331359563,0.19274941,111940.0,111930.0,0.46670577]
[1757331359952,0.19274941,111940.0,111930.0,0.46728577]
[1757331360167,0.19274941,111940.0,111930.0,0.46670577]
[1757331360733,0.1786831,111930.0,111920.0,0.06425732]
[1757331360941,0.83706748,111930.0,111920.0,0.06425732]
[1757331361147,0.17869907,111920.0,111910.0,0.06425732]
[1757331361327,0.17869907,111920.0,111900.0,0.06425732]
[1757331361328,0.17871503,111910.0,111900.0,0.06425732]
[1757331361563,0.18656745,111910.0,111900.0,0.15617331]
[1757331361773,0.18377503,111910.0,111900.0,0.15617331]
[1757331361972,0.21061035,111910.0,111900.0,0.15617331]
[1757331363254,0.21061035,111910.0,111900.0,0.09191599]
[1757331364782,0.21161035,111910.0,111900.0,0.09191599]
[1757331369141,0.21161035,111910.0,111890.0,0.06425732]
[1757331369142,0.178731,111900.0,111890.0,0.06425732]
[1757331369354,0.17874698,111890.0,111880.0,0.37478978]
[1757331369577,0.17874698,111890.0,111880.0,0.46728577]
[1757331370427,0.17874698,111890.0,111880.0,0.46733199]
[1757331371050,0.17874698,111890.0,111880.0,0.15679953]
[1757331371261,0.17874698,111890.0,111880.0,0.46733199]
[1757331371677,0.17874698,111890.0,111880.0,0.41208555]
[1757331372319,0.17874698,111890.0,111880.0,0.40307467]
[1757331372463,0.18380698,111890.0,111880.0,0.09196221]
[1757331372879,0.18380698,111890.0,111880.0,0.40249467]
[1757331373733,0.18380698,111890.0,111880.0,0.40349467]
[1757331375426,0.18380698,111890.0,111880.0,0.40407467]
[1757331375427,0.18178698,111890.0,111880.0,0.40407467]
[1757331376075,0.18178698,111890.0,111880.0,0.80407467]
[1757331376711,0.17874698,111890.0,111880.0,0.80407467]
[1757331379214,0.17874698,111890.0,111880.0,0.40407467]
[1757331379634,0.17874698,111890.0,111880.0,0.80407467]
[1757331380445,0.17874698,111890.0,111880.0,0.49354221]
[1757331380674,0.17874698,111890.0,111880.0,0.80407467]
[1757331381501,0.18170698,111890.0,111880.0,0.80407467]
[1757331382722,0.18170698,111890.0,111880.0,0.40407467]
[1757331382928,0.17874698,111890.0,111880.0,0.40407467]
[1757331383321,0.17874698,111890.0,111880.0,0.80407467]
[1757331386039,0.18170698,111890.0,111880.0,0.80407467]
[1757331386461,0.18170698,111890.0,111880.0,0.40407467]
[1757331386884,0.18170698,111890.0,111880.0,0.80407467]
[1757331387093,0.18379698,111890.0,111880.0,0.40407467]
[1757331387295,0.18379698,111890.0,111880.0,0.40349467]
[1757331387659,0.18379698,111890.0,111880.0,0.80349467]
[1757331387862,0.18379698,111890.0,111880.0,0.40349467]
[1757331388269,0.18379698,111890.0,111880.0,0.00104622]
[1757331389261,0.21063888,111890.0,111880.0,0.00104622]
[1757331392725,0.52117134,111890.0,111880.0,0.00104622]
[1757331393364,0.21063888,111890.0,111880.0,0.00104622]
[1757331398334,0.52117134,111890.0,111880.0,0.00104622]
[1757331398564,0.21063888,111890.0,111880.0,0.00104622]
[1757331416488,0.52153011,111890.0,111880.0,0.00104622]
[1757331417351,0.52153011,111890.0,111880.0,0.06530354]
[1757331421491,0.21063888,111890.0,111880.0,0.06530354]
[1757331421697,0.52153011,111890.0,111880.0,0.06530354]
[1757331421898,0.21063888,111890.0,111880.0,0.06530354]
[1757331422046,0.52153011,111890.0,111880.0,0.06530354]
[1757331425704,0.21063888,111890.0,111880.0,0.06530354]
[1757331426112,0.52153011,111890.0,111880.0,0.06530354]
[1757331430344,0.21063888,111890.0,111880.0,0.06530354]
[1757331430561,0.52153011,111890.0,111880.0,0.06530354]
[1757331434140,0.21063888,111890.0,111880.0,0.06530354]
[1757331434373,0.52153011,111890.0,111880.0,0.06530354]
[1757331437251,0.21063888,111890.0,111880.0,0.06530354]
[1757331437467,0.52153011,111890.0,111880.0,0.00104622]
[1757331439410,0.21063888,111890.0,111880.0,0.00104622]
[1757331439629,0.52153011,111890.0,111880.0,0.00104622]
[1757331439852,0.86153011,111890.0,111880.0,0.00104622]
[1757331440669,0.88447011,111890.0,111880.0,0.00104622]
[1757331445497,0.57357888,111890.0,111880.0,0.00104622]
[1757331445713,0.88447011,111890.0,111880.0,0.00104622]
[1757331446249,0.57357888,111890.0,111880.0,0.00104622]
[1757331446457,0.88447011,111890.0,111880.0,0.00104622]
[1757331449435,0.57357888,111890.0,111880.0,0.00104622]
[1757331449649,0.88447011,111890.0,111880.0,0.00104622]
[1757331452179,0.57357888,111890.0,111880.0,0.00104622]
[1757331452390,0.88447011,111890.0,111880.0,0.00104622]
[1757331453742,0.17877893,111870.0,111860.0,0.06445732]
[1757331453967,0.49246358,111870.0,111860.0,0.00024612]
[1757331454182,0.49178016,111870.0,111860.0,0.00024612]
[1757331454404,0.49481016,111870.0,111860.0,0.00024612]
[1757331454593,0.52165807,111870.0,111860.0,0.00024612]
[1757331455250,0.95357406,111870.0,111860.0,0.00024612]
[1757331456789,0.99376754,111870.0,111860.0,0.00024612]
[1757331460403,0.55076684,111870.0,111860.0,0.00024612]
[1757331460664,0.55076684,111870.0,111860.0,0.31113735]
[1757331460895,0.55076684,111870.0,111860.0,0.00024612]
[1757331461131,0.55076684,111870.0,111860.0,0.31113735]
[1757331461637,0.55076684,111870.0,111860.0,0.00024612]
[1757331462162,0.55076684,111870.0,111860.0,0.00082612]
[1757331462352,0.55076684,111870.0,111860.0,0.00024612]
[1757331462563,0.55076684,111870.0,111860.0,0.31113735]
[1757331462780,0.55076684,111870.0,111860.0,0.00024612]
[1757331462994,0.86165807,111870.0,111860.0,0.00024612]
[1757331471330,0.90146156,111870.0,111860.0,0.00024612]
[1757331472095,0.59057033,111870.0,111860.0,0.00024612]
[1757331472322,0.90146156,111870.0,111860.0,0.00024612]
[1757331476435,0.90161633,111870.0,111860.0,0.00024612]
[1757331478352,0.59057033,111870.0,111860.0,0.00024612]
[1757331478586,0.90161633,111870.0,111860.0,0.00024612]
[1757331480556,0.99353232,111870.0,111860.0,1e-08]
[1757331480730,1.01740232,111870.0,111860.0,1e-08]
[1757331480928,1.40409913,111870.0,111860.0,1e-08]
[1757331481131,1.32844832,111870.0,111860.0,1e-08]
[1757331483135,0.70635632,111870.0,111860.0,1e-08]
[1757331483345,1.01740232,111870.0,111860.0,1e-08]
[1757331485491,1.32844832,111870.0,111860.0,1e-08]
[1757331487065,1.01740232,111870.0,111860.0,1e-08]
[1757331487722,0.70635632,111870.0,111860.0,1e-08]
[1757331487928,1.01740232,111870.0,111860.0,1e-08]
[1757331489061,1.10931831,111870.0,111860.0,1e-08]
[1757331489587,1.01740232,111870.0,111860.0,1e-08]
[1757331490119,1.32844832,111870.0,111860.0,1e-08]
[1757331491325,1.01740232,111870.0,111860.0,1e-08]
[1757331493649,1.32844832,111870.0,111860.0,1e-08]
[1757331501335,0.70635632,111870.0,111860.0,1e-08]
[1757331501536,1.32844832,111870.0,111860.0,1e-08]
[1757331501925,1.01740232,111870.0,111860.0,1e-08]
[1757331504816,1.42036431,111870.0,111860.0,1e-08]
[1757331505025,1.27844832,111870.0,111860.0,1e-08]
[1757331506024,0.65635632,111870.0,111860.0,1e-08]
[1757331506242,1.27844832,111870.0,111860.0,1e-08]
[1757331508235,0.20057033,111870.0,111860.0,0.31104601]
[1757331508441,0.15562684,111870.0,111860.0,0.403902]
[1757331508649,0.02684791,111870.0,111860.0,0.95800024]
[1757331508865,0.02684791,111870.0,111860.0,1.35800024]
[1757331509097,0.17877893,111870.0,111860.0,0.98269692]
[1757331509303,0.17877893,111870.0,111860.0,0.49466382]
[1757331509504,0.17877893,111870.0,111860.0,0.51084949]
[1757331509650,0.17877893,111870.0,111860.0,0.51120949]
[1757331509871,0.17877893,111870.0,111860.0,0.51084949]
[1757331510138,0.17877893,111870.0,111860.0,0.49466552]
[1757331510319,0.17877893,111870.0,111860.0,0.18361952]
[1757331510547,0.17877893,111870.0,111860.0,0.46782463]
[1757331511938,0.17877893,111870.0,111860.0,0.64697955]
[1757331512144,0.17877893,111870.0,111860.0,0.46818463]
[1757331512344,0.17877893,111870.0,111860.0,0.49502776]
[1757331513091,0.17877893,111870.0,111860.0,0.09170577]
[1757331513294,0.17877893,111870.0,111860.0,0.00058001]
[1757331513718,0.20562542,111870.0,111860.0,0.31162601]
[1757331513853,0.17877893,111870.0,111860.0,0.31162601]
[1757331514060,0.17877893,111870.0,111860.0,0.403902]
[1757331514682,0.17877893,111870.0,111860.0,0.403542]
[1757331515795,0.17877893,111870.0,111860.0,0.403902]
[1757331516206,0.17877893,111870.0,111860.0,0.403542]
[1757331516866,0.17877893,111870.0,111860.0,0.58269692]
[1757331517214,0.17877893,111870.0,111860.0,0.403902]
[1757331517895,0.17877893,111870.0,111860.0,0.58269692]
[1757331519177,0.20560945,111880.0,111860.0,0.58269692]
[1757331519384,0.17876296,111880.0,111870.0,0.40332199]
[1757331519587,0.17876296,111880.0,111870.0,0.89372692]
[1757331520137,0.17876296,111880.0,111870.0,0.40390199]
[1757331520547,0.17876296,111880.0,111870.0,0.80390199]
[1757331521388,0.17876296,111880.0,111870.0,0.98268092]
[1757331522544,0.17876296,111880.0,111870.0,0.80390199]
[1757331523665,0.17876296,111880.0,111870.0,0.98268092]
[1757331523898,0.17876296,111880.0,111870.0,0.80390199]
[1757331524097,0.17876296,111880.0,111870.0,0.98268092]
[1757331524712,0.17876296,111880.0,111870.0,0.80390199]
[1757331527948,0.17876296,111880.0,111870.0,0.40390199]
[1757331528413,0.17876296,111880.0,111870.0,0.80390199]
[1757331528708,0.17876296,111880.0,111870.0,0.80354199]
[1757331531028,0.17876296,111880.0,111870.0,0.80390199]
[1757331531336,0.17876296,111880.0,111870.0,0.80354199]
[1757331531537,0.17876296,111880.0,111870.0,0.40354199]
[1757331531910,0.17876296,111880.0,111870.0,0.80354199]
[1757331532295,0.17876296,111880.0,111870.0,1.29372692]
[1757331532536,0.17876296,111880.0,111870.0,1.11494799]
[1757331533485,0.17876296,111880.0,111870.0,0.80390199]
[1757331534635,0.17876296,111880.0,111870.0,0.49249599]
[1757331534810,0.17876296,111880.0,111870.0,0.80354199]
[1757331535015,0.17876296,111880.0,111870.0,0.40354199]
[1757331535220,0.17877893,111870.0,111860.0,0.40217004]
[1757331535380,0.17877893,111870.0,111860.0,0.89466603]
[1757331537126,0.17877893,111870.0,111860.0,0.58362003]
[1757331537327,0.18172893,111870.0,111860.0,0.55677863]
[1757331537641,0.18172893,111870.0,111860.0,0.15677863]
[1757331538555,0.18172893,111870.0,111860.0,0.46773957]
[1757331539429,0.18369893,111870.0,111860.0,0.15677863]
[1757331539631,0.18369893,111870.0,111860.0,0.15619863]
[1757331540063,0.17877893,111870.0,111860.0,0.95749543]
[1757331540270,0.20560696,111880.0,111860.0,0.95785543]
[1757331540459,0.18768432,111890.0,111880.0,0.17876296]
[1757331540763,0.18768432,111890.0,111880.0,0.71383787]
[1757331540967,0.18768432,111890.0,111880.0,0.71441787]
[1757331541146,0.18768432,111890.0,111880.0,0.89354083]
[1757331541378,0.18768432,111890.0,111880.0,0.95782346]
[1757331542008,0.18768432,111890.0,111880.0,0.7790605]
[1757331542913,0.18768432,111890.0,111880.0,1.1790605]
[1757331546220,0.18768432,111890.0,111880.0,0.86773956]
[1757331548278,0.18768432,111890.0,111880.0,0.55677862]
[1757331548459,0.19063432,111890.0,111880.0,0.86773956]
[1757331549554,0.18768432,111890.0,111880.0,0.86773956]
[1757331553192,0.19063432,111890.0,111880.0,0.86773956]
[1757331553446,0.19260432,111890.0,111880.0,0.46428263]
[1757331553662,0.17876296,111880.0,111870.0,0.06428263]
[1757331553891,0.18368296,111880.0,111870.0,0.15619862]
[1757331554185,0.18368296,111880.0,111870.0,0.06428263]
[1757331554402,0.4946439,111880.0,111870.0,0.06428263]
[1757331554666,0.17877893,111870.0,111860.0,0.38399358]
[1757331554878,0.17877893,111870.0,111860.0,0.47590957]
[1757331555102,0.18172893,111870.0,111860.0,0.47648957]
[1757331557167,0.18172893,111870.0,111860.0,0.47648957]
[1757331558419,0.18369893,111870.0,111860.0,0.47648957]
[1757331558623,0.18369893,111870.0,111860.0,0.15619863]
[1757331558839,0.18369893,111870.0,111860.0,0.46715957]
[1757331559047,0.18369893,111870.0,111860.0,0.46773957]
[1757331559267,0.18369893,111870.0,111860.0,0.37524358]
[1757331559839,0.18369893,111870.0,111860.0,0.37582358]
[1757331561531,0.49465987,111870.0,111860.0,1e-08]
[1757331562155,0.18369893,111870.0,111860.0,1e-08]
[1757331562510,0.49465987,111870.0,111860.0,1e-08]
[1757331562917,0.18369893,111870.0,111860.0,1e-08]
[1757331563126,0.49465987,111870.0,111860.0,1e-08]
[1757331563873,0.18369893,111870.0,111860.0,1e-08]
[1757331564104,0.49465987,111870.0,111860.0,1e-08]
[1757331576931,0.50363153,111870.0,111860.0,1e-08]
[1757331582202,0.19267059,111870.0,111860.0,1e-08]
[1757331582330,0.50363153,111870.0,111860.0,1e-08]
[1757331583554,0.19267059,111870.0,111860.0,1e-08]
[1757331583800,0.50363153,111870.0,111860.0,1e-08]
[1757331586071,0.19267059,111870.0,111860.0,1e-08]
[1757331586309,0.50363153,111870.0,111860.0,1e-08]
[1757331586743,0.19267059,111870.0,111860.0,1e-08]
[1757331586953,0.50363153,111870.0,111860.0,1e-08]
[1757331587994,0.18369893,111870.0,111860.0,1e-08]
[1757331588196,0.17877893,111870.0,111860.0,0.31154095]
[1757331588402,0.18393893,111870.0,111860.0,0.31154095]
[1757331588606,0.18393893,111870.0,111860.0,1e-08]
[1757331589339,0.18393893,111870.0,111860.0,0.31096095]
[1757331589800,0.18393893,111870.0,111860.0,1e-08]
[1757331590631,0.18393893,111870.0,111860.0,0.31096095]
[1757331592563,0.18393893,111870.0,111860.0,0.31154095]
[1757331593553,0.17877893,111870.0,111860.0,0.31154095]
[1757331594031,0.18392893,111870.0,111860.0,1e-08]
[1757331594203,0.49488987,111870.0,111860.0,1e-08]
[1757331596227,0.18392893,111870.0,111860.0,1e-08]
[1757331596429,0.49488987,111870.0,111860.0,1e-08]